[Event "Karel Janecek Open 2024"]
[Site "Prague"]
[Date "2024.03.02"]
[Round "4.11"]
[White "Lohia, Sohum"]
[Black "Kourkoulos-Arditis, Stamatis"]
[Result "0-1"]
[ECO "C50"]
[WhiteElo "2354"]
[BlackElo "2547"]
[Annotator "TA"]
[PlyCount "138"]
[EventDate "2024.02.22"]
[EventType "swiss"]
[EventCountry "CZE"]
[SourceTitle "playchess.com"]
[Source "ChessBase"]
[SourceQuality "1"]
[TimeControl "40/5400+30:1800+30"]

{[%evp 10,137,14,5,15,11,11,19,11,0,28,19,19,18,22,18,29,31,26,29,43,36,33,-52,-40,-45,-50,-51,-39,-63,-53,-66,-68,-77,-70,-72,-61,-64,-61,-72,-58,-67,-64,-64,-56,-84,-63,-63,-63,-95,-71,-69,-82,-85,-79,-81,-81,-131,-129,-119,-111,-138,-128,-134,-128,-134,-130,-135,-129,-219,-207,-212,-196,-196,-192,-184,-177,-186,-185,-179,-179,-186,-186,-186,-186,-186,-174,-204,-171,-171,-164,-164,-138,-145,-131,-804,-896,-983,-374,-842,-725,-2471,-1470,-2468,-691,-957,-678,-402,0,-952,0,-751,-331,-1554,-331,-29951,-5401,-29961,-29958,-29978,-29975,-29976,-29977,-29978,-29979,-29984,-29984,-29998,-29999,-29999]} 1. e4 {[%emt 0:00:04]} e5 {[%emt 0:00:06]} 2. Nf3 {[%emt 0:00:06]} Nc6 {[%emt 0:00:04]} 3. Bc4 {[%emt 0:00:08]} Bc5 {[%emt 0:00:15]} 4. d3 {[%emt 0:00:11]} Nf6 {[%emt 0:00:06]} 5. Nc3 {[%emt 0:00:08]} h6 {[%emt 0:01:05]} 6. a3 {[%emt 0:00:09]} d6 {[%emt 0:02:00]} 7. Na4 {[%emt 0:00:12]} Bb6 {[%emt 0:00:09]} 8. h3 {[%emt 0:00:57]} O-O {[%emt 0:06:27] The position is equal.} 9. O-O {[%emt 0:00:30]} Be6 {[%emt 0:04:53]} 10. Bxe6 {[%emt 0:00:18]} fxe6 {[%emt 0:00:06]} 11. b4 {[%emt 0:00:20]} Qe8 {[%emt 0:04:56]} 12. c3 {[%emt 0:00:34]} Nb8 {[%emt 0:04:44]} 13. Nxb6 {[%emt 0:04:18]} axb6 {[%emt 0:00:59]} 14. a4 {[%emt 0:07:23]} b5 {[%emt 0:06:26]} 15. a5 {[%emt 0:08:13]} b6 {[%emt 0:02:53] [#]} 16. a6 {[%emt 0:17:59]} Rxa6 {[%emt 0:03:13]} 17. Rxa6 {[%emt 0:01:09]} Nxa6 {[%emt 0:00:07]} 18. Be3 {[%emt 0:00:40]} c5 {[%emt 0:04:08]} 19. Qb3 {[%emt 0:01:46]} Nc7 {[%emt 0:00:15]} 20. Ra1 {[%emt 0:02:20]} Qc6 {[%emt 0:01:56]} 21. c4 {[%emt 0:05:25]} bxc4 {[%emt 0:04:30]} 22. Qxc4 {[%emt 0:00:14]} Ra8 {[%emt 0:00:19]} 23. Rxa8+ {[%emt 0:03:34]} Qxa8 {[%emt 0:00:04]} 24. bxc5 {[%emt 0:00:42]} bxc5 {[%emt 0:00:06]} ({Much worse is} 24... dxc5 25. Qc3 $11) 25. g4 {[%emt 0:02:36]} Qa6 {[%emt 0:05:43]} 26. Qb3 {[%emt 0:01:47]} Qb5 {[%emt 0:02:52]} 27. Qd1 {[%emt 0:05:16]} Kf7 {[%emt 0:04:09]} 28. g5 {[%emt 0:02:11]} hxg5 {[%emt 0:00:11]} 29. Bxg5 {[%emt 0:12:09] White is now going downhill.} Nce8 {[%emt 0:03:10]} 30. Qe2 {[%emt 0:04:50]} c4 {[%emt 0:12:41]} 31. dxc4 {[%emt 0:01:48]} Qb1+ {[%emt 0:00:08]} 32. Kg2 {[%emt 0:01:19][%cal Oc4c5]} Qxe4 {[%emt 0:00:18] Black is more active.} 33. Qxe4 {[%emt 0:05:17]} ({White should play} 33. Be3) 33... Nxe4 $17 {[%emt 0:00:05][%mdl 4096] Endgame. KBN-KNN} 34. Be3 {[%emt 0:00:32]} Kf6 {[%emt 0:01:23]} 35. Bb6 {[%emt 0:02:05]} Ke7 {[%emt 0:08:01]} 36. Kf1 {[%emt 0:01:31]} N8f6 {[%emt 0:03:08]} 37. Ke2 {[%emt 0:02:21]} Nd7 {[%emt 0:00:22]} 38. Be3 {[%emt 0:00:45]} Kf6 {[%emt 0:01:05]} 39. Kd3 {[%emt 0:06:21]} (39. Nh2 $17) 39... d5 $19 {[%emt 0:03:37]} 40. cxd5 {[%emt 0:00:43]} exd5 {[%emt 0:00:05]} 41. Ke2 {[%emt 0:06:02]} Nf8 {[%emt 0:02:19]} 42. h4 {[%emt 0:05:11]} g6 {[%emt 0:02:13]} 43. Nh2 {[%emt 0:02:38]} Kf5 {[%emt 0:07:43]} 44. f3 {[%emt 0:02:17]} Nf6 {[%emt 0:00:07]} 45. Nf1 {[%emt 0:02:39]} Nh5 {[%emt 0:00:28] Against Ng3+} 46. Bh6 {[%emt 0:01:30] Ne3+ is the strong threat.} Nd7 {[%emt 0:00:56]} 47. Ne3+ {[%emt 0:01:28]} Ke6 {[%emt 0:00:06]} 48. Ng4 {[%emt 0:02:53]} Ng3+ {[%emt 0:02:22]} 49. Kf2 {[%emt 0:02:30]} Nf5 {[%emt 0:00:06]} 50. Bg5 {[%emt 0:00:07]} d4 {[%emt 0:00:49]} 51. Ke2 {[%emt 0:01:40]} Kd5 {[%emt 0:00:53]} 52. Nf6+ $2 {[%emt 0:03:58][%mdl 8192]} (52. Nf2 $17) 52... Nxf6 {[%emt 0:00:58]} 53. Bxf6 {[%emt 0:00:01] [#] KB-KN} Ng3+ $1 {[%emt 0:01:11]} 54. Kd3 {[%emt 0:01:21]} Nh5 {[%emt 0:00:07]} 55. Bg5 {[%emt 0:01:52]} Nf4+ {[%emt 0:01:34]} 56. Kd2 {[%emt 0:00:06]} Ke6 {[%emt 0:01:04]} (56... Nh3 $142 57. Be7 Ng1) 57. Ke1 {[%emt 0:02:32]} Kf5 {[%emt 0:01:11]} 58. Kf1 {[%emt 0:00:54]} Ke6 {[%emt 0:08:52]} (58... d3 $142 59. Ke1 Ne6) 59. Ke1 $1 {[%emt 0:00:34]} Kd5 $2 {[%emt 0:00:06]} (59... Kd6 $19 {And now ...Kc5 would win.} 60. Bd8 Nh3) 60. Bf6 $2 {[%emt 0:00:43][%mdl 8192]} (60. Kd2 $11) 60... Nh5 {[%emt 0:04:52]} (60... Kd6 $142 61. Bd8 Ke6) 61. Bg5 $2 {[%emt 0:00:23]} (61. Bd8) 61... Ng3 $2 {[%emt 0:00:19]} (61... Kc4 62. Kd2 Ng3) 62. Bf6 $2 {[%emt 0:00:44]} (62. Bd8 $19) 62... d3 {[%emt 0:01:43] ...e4 would now be deadly.} 63. Bg5 {[%emt 0:00:33]} Kd4 {[%emt 0:02:00] Black mates.} 64. Bf6 {[%emt 0:00:17]} Nf5 {[%emt 0:03:11]} 65. Kd2 {[%emt 0:00:42] [#]} Nd6 $1 {[%emt 0:00:15]} 66. Kd1 {[%emt 0:00:29]} Nc4 {[%emt 0:01:35]} 67. f4 {[%emt 0:00:31]} d2 {[%emt 0:00:06]} 68. fxe5 {[%emt 0:00:31]} Kd3 {[%emt 0:00:06][%cal Rc4b2]} 69. Bg5 {[%emt 0:00:22]} Nb2# {[%emt 0:00:04] Weighted Error Value: White=0.58/Black=0.60.  Loses game:     	White=2     	---        Missed win:     	---       	Black=1      Mistake:       	White=5     	---        Inaccurate:     	White=4     	Black=1      OK:         	White=19    	Black=20     Best:        	White=4     	Black=3} 0-1

[Event "Karel Janecek Open 2024"]
[Site "Prague"]
[Date "2024.03.02"]
[Round "4.12"]
[White "Heberla, Bartlomiej"]
[Black "Kusa, Jakub"]
[Result "0-1"]
[ECO "A17"]
[WhiteElo "2546"]
[BlackElo "2350"]
[Annotator "RC"]
[PlyCount "80"]
[EventDate "2024.02.22"]
[EventType "swiss"]
[EventCountry "CZE"]
[SourceTitle "playchess.com"]
[Source "ChessBase"]
[SourceQuality "1"]
[TimeControl "40/5400+30:1800+30"]

1. Nf3 {[%emt 0:00:07]} d5 {[%emt 0:00:26]} 2. e3 {[%emt 0:00:07]} Nf6 {[%emt 0:00:44]} 3. c4 {[%emt 0:00:02]} e6 {[%emt 0:01:06]} 4. Nc3 {[%emt 0:00:03]} c5 {[%emt 0:01:29]} 5. cxd5 {[%emt 0:00:07]} Nxd5 {[%emt 0:02:12]} 6. Qc2 {[%emt 0:07:46]} Be7 {[%emt 0:03:21]} 7. b3 {[%emt 0:00:10]} Nc6 {[%emt 0:02:50]} 8. Bb2 {[%emt 0:00:31]} O-O {[%emt 0:03:52]} 9. a3 {[%emt 0:00:04]} Bf6 {[%emt 0:04:30]} 10. h4 {[%emt 0:01:19]} Nxc3 {[%emt 0:05:41]} 11. dxc3 {[%emt 0:07:10]} h6 {[%emt 0:02:43]} 12. g4 {[%emt 0:02:46]} Ne5 {[%emt 0:10:07]} 13. Nxe5 {[%emt 0:00:43]} Bxe5 {[%emt 0:00:07]} 14. f4 {[%emt 0:00:20]} Bc7 {[%emt 0:01:23]} 15. g5 {[%emt 0:00:54]} e5 {[%emt 0:02:40]} 16. Bd3 {[%emt 0:05:34]} c4 {[%emt 0:06:17]} 17. bxc4 {[%emt 0:10:17]} Bg4 {[%emt 0:03:27]} 18. gxh6 {[%emt 0:25:28]} exf4 {[%emt 0:02:03]} 19. Bh7+ {[%emt 0:00:24]} Kh8 {[%emt 0:00:10]} 20. hxg7+ {[%emt 0:00:04]} Kxg7 {[%emt 0:00:27]} 21. Bf5 {[%emt 0:02:58]} Bf3 {[%emt 0:05:44]} 22. Rg1+ {[%emt 0:27:51]} Kh8 {[%emt 0:02:49]} 23. e4 {[%emt 0:03:48]} Rg8 {[%emt 0:05:31]} 24. Qf2 {[%emt 0:03:13]} Rxg1+ {[%emt 0:00:54]} 25. Qxg1 {[%emt 0:00:02]} Qxh4+ {[%emt 0:00:43]} 26. Kd2 {[%emt 0:00:01]} Be5 {[%emt 0:04:01]} 27. Kc2 {[%emt 0:00:02]} b6 {[%emt 0:01:28]} 28. Qf1 {[%emt 0:00:45]} Qh2+ {[%emt 0:01:19]} 29. Kb3 {[%emt 0:00:01]} Be2 {[%emt 0:00:54]} 30. Qh1 {[%emt 0:01:36]} Qxh1 {[%emt 0:01:06]} 31. Rxh1+ {[%emt 0:00:02]} Kg7 {[%emt 0:00:18]} 32. Bc1 {[%emt 0:00:01]} Rh8 {[%emt 0:01:34]} 33. Rxh8 {[%emt 0:01:48]} Kxh8 {[%emt 0:00:09]} 34. Kc2 {[%emt 0:00:51]} Bxc4 {[%emt 0:00:46]} 35. Kd2 {[%emt 0:00:29]} Kg7 {[%emt 0:00:25]} 36. Bg4 {[%emt 0:00:01]} Kg6 {[%emt 0:01:08]} 37. Be2 {[%emt 0:00:02]} Be6 {[%emt 0:00:36]} 38. Bf3 {[%emt 0:01:09]} Kg5 {[%emt 0:00:15]} 39. Kd3 {[%emt 0:00:50]} Kh4 {[%emt 0:00:28]} 40. Bd2 {[%emt 0:00:32]} Kg3 {[%emt 0:00:21]} 0-1

[Event "Karel Janecek Open 2024"]
[Site "Prague"]
[Date "2024.03.02"]
[Round "4.13"]
[White "Polak, Tomas"]
[Black "Jares, Michal"]
[Result "1-0"]
[ECO "D01"]
[WhiteElo "2525"]
[BlackElo "2314"]
[Annotator "RC"]
[PlyCount "107"]
[EventDate "2024.02.22"]
[EventType "swiss"]
[EventCountry "CZE"]
[SourceTitle "playchess.com"]
[Source "ChessBase"]
[SourceQuality "1"]
[TimeControl "40/5400+30:1800+30"]

1. d4 {[%emt 0:00:05]} d5 {[%emt 0:00:02]} 2. Nc3 {[%emt 0:01:20]} Nf6 {[%emt 0:00:17]} 3. Bg5 {[%emt 0:00:05]} g6 {[%emt 0:00:35]} 4. Qd2 {[%emt 0:00:32]} Bg7 {[%emt 0:00:17]} 5. Bh6 {[%emt 0:00:24]} O-O {[%emt 0:00:58]} 6. Bxg7 {[%emt 0:00:05]} Kxg7 {[%emt 0:00:03]} 7. O-O-O {[%emt 0:01:15]} c5 {[%emt 0:01:24]} 8. e3 {[%emt 0:00:32]} Nc6 {[%emt 0:01:27]} 9. dxc5 {[%emt 0:02:57]} Qa5 {[%emt 0:00:37]} 10. Bb5 {[%emt 0:00:45]} e5 {[%emt 0:08:43]} 11. Nf3 {[%emt 0:19:41]} Bg4 {[%emt 0:00:42]} 12. Bxc6 {[%emt 0:02:58]} bxc6 {[%emt 0:01:32]} 13. Nxe5 {[%emt 0:02:02]} Bxd1 {[%emt 0:01:21]} 14. Qd4 {[%emt 0:00:16]} Qc7 {[%emt 0:14:40]} 15. Rxd1 {[%emt 0:01:59]} Kg8 {[%emt 0:01:36]} 16. f4 {[%emt 0:16:28]} Rfe8 {[%emt 0:03:06]} 17. g4 {[%emt 0:02:23]} Nd7 {[%emt 0:14:49]} 18. Nxd7 {[%emt 0:02:43]} Qxd7 {[%emt 0:01:43]} 19. e4 {[%emt 0:02:30]} Qxg4 {[%emt 0:00:03]} 20. exd5 {[%emt 0:00:09]} Rad8 {[%emt 0:00:19]} 21. d6 {[%emt 0:03:06]} Qf3 {[%emt 0:01:20]} 22. b4 {[%emt 0:03:38]} a6 {[%emt 0:15:44]} 23. Kb2 {[%emt 0:04:34]} Qg4 {[%emt 0:03:32]} 24. a4 {[%emt 0:06:36]} Rb8 {[%emt 0:07:54]} 25. b5 {[%emt 0:02:48]} axb5 {[%emt 0:00:09]} 26. axb5 {[%emt 0:00:06]} Qe6 {[%emt 0:00:59]} 27. b6 {[%emt 0:02:26]} f5 {[%emt 0:00:31]} 28. Qa4 {[%emt 0:10:26]} Qd7 {[%emt 0:00:35]} 29. Ra1 {[%emt 0:00:48]} Rb7 {[%emt 0:01:14]} 30. h4 {[%emt 0:02:12]} h5 {[%emt 0:01:46]} 31. Rg1 {[%emt 0:01:03]} Kh7 {[%emt 0:00:25]} 32. Qd4 {[%emt 0:01:25]} Re6 {[%emt 0:01:24]} 33. Ra1 {[%emt 0:02:04]} Re8 {[%emt 0:00:53]} 34. Ra6 {[%emt 0:01:12]} Reb8 {[%emt 0:01:26]} 35. Nd1 {[%emt 0:02:06]} Qe6 {[%emt 0:05:16]} 36. Ne3 {[%emt 0:02:09]} Re8 {[%emt 0:00:22]} 37. Nc4 {[%emt 0:00:27]} Qe2 {[%emt 0:01:21]} 38. Ra3 {[%emt 0:02:12]} Re4 {[%emt 0:09:53]} 39. Re3 {[%emt 0:00:06]} Rxe3 {[%emt 0:00:28]} 40. Nxe3 {[%emt 0:00:35]} Qb5+ {[%emt 0:00:33]} 41. Kc1 {[%emt 0:06:28]} Rd7 {[%emt 0:04:05]} 42. Kd2 {[%emt 0:04:10]} Qa5+ {[%emt 0:02:23]} 43. Qc3 {[%emt 0:03:55]} Qb5 {[%emt 0:00:49]} 44. Qc4 {[%emt 0:00:37]} Qb2 {[%emt 0:04:42]} 45. Qe6 {[%emt 0:01:13]} Qd4+ {[%emt 0:01:22]} 46. Ke2 {[%emt 0:00:11]} Rg7 {[%emt 0:00:19]} 47. Qe5 {[%emt 0:01:00]} Qb4 {[%emt 0:00:52]} 48. Qxg7+ {[%emt 0:07:52]} Kxg7 {[%emt 0:00:04]} 49. d7 {[%emt 0:00:06]} Qxf4 {[%emt 0:07:47]} 50. d8=Q {[%emt 0:00:39]} Qh2+ {[%emt 0:00:03]} 51. Kd3 {[%emt 0:01:30]} f4 {[%emt 0:00:02]} 52. Qc7+ {[%emt 0:03:48]} Kh6 {[%emt 0:00:01]} 53. b7 {[%emt 0:00:35]} Qf2 {[%emt 0:01:50]} 54. Qe5 {[%emt 0:00:28]} 1-0

[Event "Karel Janecek Open 2024"]
[Site "Prague"]
[Date "2024.03.02"]
[Round "4.14"]
[White "Tan, Jun Ying"]
[Black "Kraus, Tomas"]
[Result "1/2-1/2"]
[ECO "D31"]
[WhiteElo "2310"]
[BlackElo "2484"]
[Annotator "RC"]
[PlyCount "193"]
[EventDate "2024.02.22"]
[EventType "swiss"]
[EventCountry "CZE"]
[SourceTitle "playchess.com"]
[Source "ChessBase"]
[SourceQuality "1"]
[TimeControl "40/5400+30:1800+30"]

1. d4 {[%emt 0:00:07]} d5 {[%emt 0:00:28]} 2. c4 {[%emt 0:00:08]} e6 {[%emt 0:00:48]} 3. Nc3 {[%emt 0:00:05]} Bb4 {[%emt 0:00:55]} 4. a3 {[%emt 0:00:13]} Bxc3+ {[%emt 0:00:20]} 5. bxc3 {[%emt 0:00:03]} Ne7 {[%emt 0:07:29]} 6. e3 {[%emt 0:01:39]} c6 {[%emt 0:03:27]} 7. Nf3 {[%emt 0:11:00]} b6 {[%emt 0:06:09]} 8. Bd3 {[%emt 0:00:47]} Ba6 {[%emt 0:02:47]} 9. Qe2 {[%emt 0:00:58]} Nd7 {[%emt 0:05:43]} 10. O-O {[%emt 0:01:23]} Rc8 {[%emt 0:06:57]} 11. a4 {[%emt 0:08:36]} O-O {[%emt 0:07:59]} 12. Ba3 {[%emt 0:04:07]} c5 {[%emt 0:05:48]} 13. cxd5 {[%emt 0:02:21]} Bxd3 {[%emt 0:00:57]} 14. Qxd3 {[%emt 0:00:41]} exd5 {[%emt 0:01:22]} 15. Rfd1 {[%emt 0:12:49]} c4 {[%emt 0:06:49]} 16. Qc2 {[%emt 0:03:43]} Re8 {[%emt 0:08:51]} 17. Nd2 {[%emt 0:08:15]} Ng6 {[%emt 0:04:32]} 18. Qf5 {[%emt 0:10:16]} Nf6 {[%emt 0:01:16]} 19. Rab1 {[%emt 0:02:19]} Re6 {[%emt 0:02:14]} 20. Rb5 {[%emt 0:08:03]} a6 {[%emt 0:01:40]} 21. Rb4 {[%emt 0:05:07]} Qd7 {[%emt 0:03:12]} 22. Rdb1 {[%emt 0:03:59]} Rce8 {[%emt 0:00:05]} 23. Qh3 {[%emt 0:02:13]} h5 {[%emt 0:02:06]} 24. Nf3 {[%emt 0:01:58]} Rc6 {[%emt 0:11:49]} 25. Qxd7 {[%emt 0:00:44]} Nxd7 {[%emt 0:00:01]} 26. Nd2 {[%emt 0:00:42]} f5 {[%emt 0:00:53]} 27. g3 {[%emt 0:00:14]} Nh8 {[%emt 0:01:37]} 28. R4b2 {[%emt 0:00:58]} Nf7 {[%emt 0:00:23]} 29. h4 {[%emt 0:02:33]} Nh6 {[%emt 0:01:25]} 30. Nf3 {[%emt 0:01:21]} Ng4 {[%emt 0:00:55]} 31. Ng5 {[%emt 0:01:04]} Ngf6 {[%emt 0:01:07]} 32. Nh3 {[%emt 0:04:30]} Kf7 {[%emt 0:00:36]} 33. Ng5+ {[%emt 0:00:34]} Kg8 {[%emt 0:01:20]} 34. Nh3 {[%emt 0:00:00]} g6 {[%emt 0:01:19]} 35. Kg2 {[%emt 0:01:01]} Kf7 {[%emt 0:00:36]} 36. Ng5+ {[%emt 0:00:17]} Kg8 {[%emt 0:00:00]} 37. Nh3 {[%emt 0:00:04]} Kg7 {[%emt 0:00:47]} 38. Nf4 {[%emt 0:01:16]} Kf7 {[%emt 0:00:41]} 39. Rc2 {[%emt 0:02:01]} Ra8 {[%emt 0:03:31]} 40. Bc1 {[%emt 0:01:39]} Nf8 {[%emt 0:00:47]} 41. Rcb2 {[%emt 0:09:17]} Rb8 {[%emt 0:01:14]} 42. f3 {[%emt 0:02:18]} Rb7 {[%emt 0:01:36]} 43. Kf2 {[%emt 0:04:44]} Ne6 {[%emt 0:01:31]} 44. Rb4 {[%emt 0:01:27]} Nxf4 {[%emt 0:01:13]} 45. gxf4 {[%emt 0:00:25]} Rb8 {[%emt 0:03:12]} 46. Ba3 {[%emt 0:01:29]} Nd7 {[%emt 0:02:55]} 47. Bc1 {[%emt 0:00:50]} Re8 {[%emt 0:00:36]} 48. R4b2 {[%emt 0:00:50]} Ree6 {[%emt 0:01:27]} 49. Rb4 {[%emt 0:00:19]} Ke8 {[%emt 0:01:26]} 50. R4b2 {[%emt 0:00:09]} Kd8 {[%emt 0:00:54]} 51. Rb4 {[%emt 0:00:12]} Kc7 {[%emt 0:01:07]} 52. R4b2 {[%emt 0:00:06]} Re8 {[%emt 0:00:43]} 53. Rb4 {[%emt 0:00:18]} Rce6 {[%emt 0:01:05]} 54. R4b2 {[%emt 0:00:08]} Rb8 {[%emt 0:01:27]} 55. Rb4 {[%emt 0:00:11]} Rb7 {[%emt 0:00:11]} 56. Ba3 {[%emt 0:02:48]} Rb8 {[%emt 0:00:53]} 57. Bc1 {[%emt 0:02:06]} Nf6 {[%emt 0:00:51]} 58. Ba3 {[%emt 0:03:00]} Rbe8 {[%emt 0:00:32]} 59. Bc1 {[%emt 0:00:13]} Ng8 {[%emt 0:00:16]} 60. R4b2 {[%emt 0:01:16]} Nh6 {[%emt 0:00:06]} 61. Re2 {[%emt 0:02:03]} Nf7 {[%emt 0:01:57]} 62. Ba3 {[%emt 0:00:37]} Nd8 {[%emt 0:00:50]} 63. Bb4 {[%emt 0:00:26]} Nc6 {[%emt 0:00:41]} 64. Rbb2 {[%emt 0:00:22]} Kb7 {[%emt 0:03:18]} 65. Rb1 {[%emt 0:00:22]} Nd8 {[%emt 0:03:25]} 66. Ba3 {[%emt 0:00:45]} Rc6 {[%emt 0:00:29]} 67. Bb4 {[%emt 0:00:48]} Ne6 {[%emt 0:00:08]} 68. Ba3 {[%emt 0:00:31]} Nc7 {[%emt 0:00:01]} 69. Bb4 {[%emt 0:01:16]} Rce6 {[%emt 0:00:15]} 70. Ba3 {[%emt 0:00:23]} Ka7 {[%emt 0:03:17]} 71. Bc1 {[%emt 0:00:23]} Rb8 {[%emt 0:00:25]} 72. Reb2 {[%emt 0:01:58]} Ne8 {[%emt 0:00:01]} 73. Re2 {[%emt 0:00:14]} Nf6 {[%emt 0:01:44]} 74. Reb2 {[%emt 0:01:25]} Nd7 {[%emt 0:00:26]} 75. Re2 {[%emt 0:00:18]} Kb7 {[%emt 0:00:28]} 76. Ba3 {[%emt 0:01:04]} Kc6 {[%emt 0:00:21]} 77. Reb2 {[%emt 0:00:26]} Kc7 {[%emt 0:00:40]} 78. Re2 {[%emt 0:00:26]} Rbe8 {[%emt 0:00:28]} 79. Bc1 {[%emt 0:00:21]} Nb8 {[%emt 0:00:54]} 80. Ba3 {[%emt 0:00:10]} Nc6 {[%emt 0:00:34]} 81. Bb4 {[%emt 0:00:12]} Kb7 {[%emt 0:00:46]} 82. Rbb2 {[%emt 0:01:31]} Kc8 {[%emt 0:01:09]} 83. Rb1 {[%emt 0:00:18]} Kc7 {[%emt 0:00:59]} 84. Rbb2 {[%emt 0:00:36]} Rb8 {[%emt 0:00:37]} 85. Rb1 {[%emt 0:00:55]} Ree8 {[%emt 0:00:45]} 86. Reb2 {[%emt 0:00:43]} Rb7 {[%emt 0:02:22]} 87. Re2 {[%emt 0:00:25]} Na7 {[%emt 0:00:45]} 88. Reb2 {[%emt 0:00:36]} Rbb8 {[%emt 0:00:42]} 89. Ba3 {[%emt 0:00:22]} Re6 {[%emt 0:00:42]} 90. Re2 {[%emt 0:00:50]} Rbe8 {[%emt 0:01:15]} 91. Bb4 {[%emt 0:00:32]} a5 {[%emt 0:01:39]} 92. Ba3 {[%emt 0:00:04]} Kb7 {[%emt 0:00:28]} 93. Bc1 {[%emt 0:00:49]} Ka6 {[%emt 0:00:56]} 94. Reb2 {[%emt 0:00:12]} Rb8 {[%emt 0:00:31]} 95. Rb5 {[%emt 0:00:29]} Nxb5 {[%emt 0:00:27]} 96. Rxb5 {[%emt 0:00:05]} Rd8 {[%emt 0:00:21]} 97. Ba3 {[%emt 0:00:39]} 1/2-1/2

[Event "Karel Janecek Open 2024"]
[Site "Prague"]
[Date "2024.03.02"]
[Round "4.15"]
[White "Maksimovic, Bojan"]
[Black "Cieslak, Patryk"]
[Result "1/2-1/2"]
[ECO "D42"]
[WhiteElo "2497"]
[BlackElo "2325"]
[Annotator "TA"]
[PlyCount "78"]
[EventDate "2024.02.22"]
[EventType "swiss"]
[EventCountry "CZE"]
[SourceTitle "playchess.com"]
[Source "ChessBase"]
[SourceQuality "1"]
[TimeControl "40/5400+30:1800+30"]

{[%evp 24,78,6,31,31,0,0,-22,0,-17,-22,-23,-12,-76,-11,-22,0,-4,0,0,-2,-21,-12,-16,-11,-37,-37,-38,-29,-45,-22,-28,-16,-8,-8,-10,-7,-16,-8,-10,0,0,0,-18,0,0,0,0,0,0,0,0,0,0,0,0,0]} 1. Nf3 {[%emt 0:00:48]} c5 {[%emt 0:00:04]} 2. c4 {[%emt 0:00:27]} Nc6 {[%emt 0:01:11]} 3. Nc3 {[%emt 0:00:15]} Nf6 {[%emt 0:00:58]} 4. e3 {[%emt 0:00:41]} e6 {[%emt 0:02:21]} 5. d4 {[%emt 0:00:35]} d5 {[%emt 0:00:18]} 6. cxd5 {[%emt 0:00:33]} Nxd5 {[%emt 0:06:40]} 7. Bd3 {[%emt 0:01:01]} cxd4 {[%emt 0:03:05]} 8. exd4 {[%emt 0:00:35]} Be7 {[%emt 0:03:47]} 9. O-O {[%emt 0:01:47]} O-O {[%emt 0:00:52]} 10. a3 {[%emt 0:03:29]} Nxc3 {[%emt 0:12:02]} 11. bxc3 {[%emt 0:00:07]} b6 {[%emt 0:01:01]} 12. Qc2 {[%emt 0:03:58]} g6 {[%emt 0:01:33]} 13. Bh6 {[%emt 0:00:38]} Re8 {[%emt 0:00:18]} 14. Rad1 {[%emt 0:14:44]} Bb7 {[%emt 0:02:47][%cal Oa8c8]} 15. Be4 {[%emt 0:06:18]} Qc7 {[%emt 0:05:36]} 16. c4 {[%emt 0:02:08] d5 is the strong threat.} Na5 {[%emt 0:03:29][%cal Bc6a5,Ba5b7,Bb7d6,Bd6f5][%mdl 32]} 17. Bxb7 {[%emt 0:09:00]} Nxb7 {[%emt 0:01:02]} 18. Qe4 {[%emt 0:03:15] [#]} (18. Rd3 $11 {remains equal.}) 18... Bf6 {[%emt 0:07:14]} (18... Rac8 $1 $17 {[%cal Ob7d6] White should prevent ...Nd6!} 19. c5 bxc5 20. dxc5 Nxc5) 19. Ne5 {[%emt 0:02:30]} Bg7 {[%emt 0:04:49]} 20. Bxg7 {[%emt 0:02:28]} Kxg7 {[%emt 0:00:02]} 21. Rc1 {[%emt 0:00:41][%cal Oc4c5]} Rac8 {[%emt 0:03:46]} 22. Qe2 {[%emt 0:04:44]} Nd6 {[%emt 0:02:08]} 23. c5 {[%emt 0:08:12]} Nf5 {[%emt 0:01:17]} 24. Rfd1 {[%emt 0:00:53]} Red8 {[%emt 0:01:28]} 25. Nf3 {[%emt 0:03:09]} Rd5 {[%emt 0:04:25][%cal Rb6c5]} 26. Qb2 {[%emt 0:01:54] [#] Strongly threatening cxb6.} Qd8 {[%emt 0:01:59]} 27. h3 {[%emt 0:02:21]} Kg8 {[%emt 0:05:49]} 28. cxb6 {[%emt 0:00:24] aiming for Rxc8. The position is equal.} Rxc1 {[%emt 0:00:48]} 29. Rxc1 {[%emt 0:00:19]} Qxb6 {[%emt 0:01:05]} 30. Qxb6 {[%emt 0:00:41]} axb6 $11 {[%emt 0:00:01][%mdl 4096] Endgame. KRN-KRN} 31. Rb1 {[%emt 0:00:18]} Ra5 {[%emt 0:06:16]} 32. Rxb6 {[%emt 0:00:21]} Rxa3 {[%emt 0:00:36]} 33. Rb8+ {[%emt 0:02:19]} Kg7 {[%emt 0:00:07]} 34. Rb7 {[%emt 0:04:29][%cal Bb8b7,Bb7d7,Bd7d8][%mdl 32]} Nd6 {[%emt 0:05:12]} 35. Rd7 {[%emt 0:01:01]} Ra6 {[%emt 0:00:04]} 36. Ng5 {[%emt 0:02:52]} Kg8 {[%emt 0:00:16]} 37. Rd8+ {[%emt 0:00:05]} Kg7 {[%emt 0:00:01]} 38. Rd7 {[%emt 0:00:07]} Kg8 {[%emt 0:00:04]} 39. Rd8+ {[%emt 0:00:04]} Kg7 {[%emt 0:00:04] Weighted Error Value: White=0.10 (very precise) /Black=0.10 (very precise) .  Mistake:       	White=1     	Black=1      Inaccurate:     	White=2     	---        OK:         	White=14    	Black=10     Best:        	---       	Black=2} 1/2-1/2